bitfinex/quotes_BTCUSD_20250726
["timestamp","ask_amount","ask_price","bid_price","bid_amount"]
[1753526612687,0.43493276,118260.0,118250.0,0.41924878]
[1753526613051,0.43493276,118260.0,118250.0,0.42770508]
[1753526613531,0.43493276,118260.0,118250.0,0.43616131]
[1753526613748,0.43493276,118260.0,118250.0,0.42750501]
[1753526613895,0.59559578,118260.0,118250.0,0.40213576]
[1753526614142,0.59559578,118260.0,118250.0,0.41059234]
[1753526614496,0.42647689,118260.0,118250.0,0.42750529]
[1753526614744,0.58714034,118260.0,118250.0,0.41059241]
[1753526614987,0.41802145,118260.0,118250.0,0.41904885]
[1753526615216,0.42647739,118260.0,118250.0,0.42750515]
[1753526615428,0.42647739,118260.0,118250.0,0.42750522]
[1753526615676,0.17310652,118300.0,118290.0,0.16907599]
[1753526615958,0.17310652,118300.0,118290.0,0.4485676]
[1753526615959,0.10261,118300.0,118290.0,0.4485676]
[1753526616230,0.10261,118300.0,118290.0,0.7436891]
[1753526616466,0.10261,118300.0,118290.0,0.6083691]
[1753526616706,0.10261,118300.0,118290.0,0.46903662]
[1753526616940,0.10261,118300.0,118290.0,0.46952189]
[1753526617858,0.11106244,118300.0,118290.0,0.47152189]
[1753526618500,0.10261,118300.0,118290.0,0.47152189]
[1753526618708,0.11106258,118300.0,118290.0,0.47352189]
[1753526619077,0.11951537,118300.0,118290.0,0.47352189]
[1753526619275,0.1195153,118300.0,118290.0,0.47352189]
[1753526619491,0.12796817,118300.0,118290.0,0.47352189]
[1753526619701,0.12796809,118300.0,118290.0,0.47352189]
[1753526619899,0.11106258,118300.0,118290.0,0.47352189]
[1753526620108,0.11951523,118300.0,118290.0,0.47352189]
[1753526620472,0.12796802,118300.0,118290.0,0.47352189]
[1753526620688,0.12796802,118300.0,118290.0,0.51832189]
[1753526620689,0.10261,118300.0,118290.0,0.51832189]
[1753526620878,0.10261,118300.0,118290.0,0.49532189]
[1753526621177,0.11951509,118300.0,118290.0,0.47352189]
[1753526621593,0.12796796,118300.0,118290.0,0.47352189]
[1753526622017,0.12796788,118300.0,118290.0,0.47352189]
[1753526622221,0.12796781,118300.0,118290.0,0.47352189]
[1753526622469,0.12796781,118300.0,118290.0,0.47324189]
[1753526622685,0.13642068,118300.0,118290.0,0.47324189]
[1753526622842,0.12796781,118300.0,118290.0,0.47324189]
[1753526623046,0.13642068,118300.0,118290.0,0.47324189]
[1753526623261,0.11951509,118300.0,118290.0,0.47324189]
[1753526623465,0.12796788,118300.0,118290.0,0.47324189]
[1753526623673,0.11951509,118300.0,118290.0,0.47324189]
[1753526624081,0.10261,118300.0,118290.0,0.47324189]
[1753526624677,0.11106244,118300.0,118290.0,0.47324189]
[1753526624917,0.11951495,118300.0,118290.0,0.47324189]
[1753526625134,0.12796767,118300.0,118290.0,0.47324189]
[1753526625354,0.1279676,118300.0,118290.0,0.47324189]
[1753526625999,0.13642039,118300.0,118290.0,0.47324189]
[1753526626336,0.13642032,118300.0,118290.0,0.47324189]
[1753526627093,0.1279676,118300.0,118290.0,0.47324189]
[1753526627515,0.13642032,118300.0,118290.0,0.47324189]
[1753526627744,0.14487319,118300.0,118290.0,0.47324189]
[1753526627914,0.13642032,118300.0,118290.0,0.47324189]
[1753526628501,0.14487319,118300.0,118290.0,0.47324189]
[1753526628794,0.1279676,118300.0,118290.0,0.47324189]
[1753526629012,0.11951495,118300.0,118290.0,0.74785437]
[1753526629236,0.1279676,118300.0,118290.0,0.74785437]
[1753526629418,0.1279676,118300.0,118290.0,0.47324189]
[1753526629646,0.11106244,118300.0,118290.0,0.51964189]
[1753526630305,0.11951495,118300.0,118290.0,0.51964189]
[1753526630748,0.12796753,118300.0,118290.0,0.51964189]
[1753526630961,0.14487297,118300.0,118290.0,0.47324189]
[1753526631169,0.13642018,118300.0,118290.0,0.47324189]
[1753526631413,0.12796753,118300.0,118290.0,0.49754189]
[1753526631618,0.13642025,118300.0,118290.0,0.49754189]
[1753526631892,0.13642025,118300.0,118290.0,0.47324189]
[1753526632458,0.13642018,118300.0,118290.0,0.47324189]
[1753526632887,0.12796753,118300.0,118290.0,0.47324189]
[1753526633213,0.13642025,118300.0,118290.0,0.47324189]
[1753526633415,0.12796753,118300.0,118290.0,0.47324189]
[1753526633826,0.29814037,118300.0,118290.0,0.13026159]
[1753526634056,0.29814037,118300.0,118290.0,0.42683481]
[1753526634380,0.28968765,118300.0,118290.0,0.08896257]
[1753526634524,0.28137471,118300.0,118290.0,0.22336257]
[1753526634949,0.28137471,118300.0,118290.0,0.08896257]
[1753526635115,0.30507471,118300.0,118290.0,0.22336257]
[1753526635341,0.30507471,118300.0,118290.0,0.08896257]
[1753526635537,0.30493471,118300.0,118290.0,0.08896257]
[1753526635745,0.30493471,118300.0,118290.0,0.22336257]
[1753526635948,0.28123471,118300.0,118290.0,0.22336257]
[1753526636172,0.32926471,118300.0,118290.0,0.22336257]
[1753526637041,0.32926471,118300.0,118290.0,0.22136257]
[1753526637248,0.32926471,118300.0,118290.0,0.21936257]
[1753526637460,0.32857471,118300.0,118290.0,0.21932257]
[1753526638199,0.32843471,118300.0,118290.0,0.21932257]
[1753526639914,0.32912471,118300.0,118290.0,0.21916257]
[1753526640633,0.94373719,118300.0,118290.0,0.00048527]
[1753526640859,5.97382619,118300.0,118290.0,0.00048527]
[1753526641307,6.24591867,118300.0,118290.0,1e-08]
[1753526641801,5.97130619,118300.0,118290.0,1e-08]
[1753526642016,5.97330619,118300.0,118290.0,1e-08]
[1753526642220,5.97130619,118300.0,118290.0,1e-08]
[1753526642665,5.97530619,118300.0,118290.0,1e-08]
[1753526642869,5.97630619,118300.0,118290.0,1e-08]
[1753526643090,5.84210619,118300.0,118290.0,1e-08]
[1753526643308,0.67091471,118300.0,118290.0,1e-08]
[1753526643859,0.33091471,118300.0,118290.0,0.08447731]
[1753526644143,0.30610471,118300.0,118290.0,0.11436731]
[1753526644366,0.61860471,118300.0,118290.0,0.11436731]
[1753526644598,0.62160471,118300.0,118290.0,0.11436731]
[1753526645030,0.61860471,118300.0,118290.0,0.11436731]
[1753526645240,0.61960471,118300.0,118290.0,0.11436731]
[1753526645479,0.61860471,118300.0,118290.0,0.11436731]
[1753526646104,0.61860471,118300.0,118290.0,0.24840731]
[1753526646944,0.61960471,118300.0,118290.0,0.24840731]
[1753526647454,0.61860471,118300.0,118290.0,0.24840731]
[1753526647660,0.61960471,118300.0,118290.0,0.24840731]
[1753526648056,1.01960471,118300.0,118290.0,0.24840731]
[1753526648463,1.02071471,118300.0,118290.0,0.24840731]
[1753526649556,1.02071471,118300.0,118290.0,0.24307731]
[1753526652013,1.02071471,118300.0,118290.0,0.24287749]
[1753526652235,0.50209,118300.0,118290.0,0.27150749]
[1753526652447,0.11054251,118300.0,118290.0,0.7827055]
[1753526652873,0.10209,118300.0,118290.0,0.50809302]
[1753526653115,0.10954244,118300.0,118290.0,0.50809302]
[1753526653324,0.11799502,118300.0,118290.0,0.50809302]
[1753526653797,0.13590054,118300.0,118290.0,0.50809302]
[1753526654019,0.14335348,118300.0,118290.0,0.50809302]
[1753526654428,0.14335348,118300.0,118290.0,0.51009302]
[1753526654558,0.14235348,118300.0,118290.0,0.51009302]
[1753526654971,0.14235348,118300.0,118290.0,0.51109302]
[1753526655555,0.13390054,118300.0,118290.0,0.51109302]
[1753526656423,0.14235348,118300.0,118290.0,0.51109302]
[1753526657331,0.13390046,118300.0,118290.0,0.51109302]
[1753526658137,0.1423534,118300.0,118290.0,0.51109302]
[1753526658352,0.13390046,118300.0,118290.0,0.51109302]
[1753526658554,0.1423534,118300.0,118290.0,0.51109302]
[1753526659391,0.13390046,118300.0,118290.0,0.51109302]
[1753526659590,0.1423534,118300.0,118290.0,0.51109302]
[1753526659797,0.14235397,118300.0,118290.0,0.51109302]
[1753526660011,0.13390089,118300.0,118290.0,0.51109302]
[1753526660471,0.1423539,118300.0,118290.0,0.51109302]
[1753526660705,0.1423544,118300.0,118290.0,0.51109302]
[1753526660915,0.13390175,118300.0,118290.0,0.50263973]
[1753526661123,0.29451066,118300.0,118290.0,0.50223973]
[1753526661519,0.27871478,118300.0,118290.0,0.25080749]
[1753526662161,0.55332726,118300.0,118290.0,0.08727749]
[1753526662426,0.27871478,118300.0,118290.0,0.22087749]
[1753526662689,0.67871478,118300.0,118290.0,0.22087749]
[1753526662893,0.67871478,118300.0,118290.0,0.24443749]
[1753526663159,0.67871478,118300.0,118290.0,0.24243749]
[1753526663411,0.11699595,118300.0,118290.0,0.73296333]
[1753526663650,0.12544853,118300.0,118290.0,0.7663567]
[1753526663888,0.13390075,118300.0,118290.0,0.79225901]
[1753526664160,0.14235362,118300.0,118290.0,0.51764653]
[1753526664702,0.12544824,118300.0,118290.0,0.51964653]
[1753526664916,0.13390118,118300.0,118290.0,0.51964653]
[1753526665254,0.12544824,118300.0,118290.0,0.51964653]
[1753526665732,0.11699537,118300.0,118290.0,0.51964653]
[1753526665940,0.11699509,118300.0,118290.0,0.51964653]
[1753526667095,0.10009,118300.0,118290.0,0.51964653]
[1753526667308,0.10854251,118300.0,118290.0,0.52064653]
[1753526667520,0.11699516,118300.0,118290.0,0.52064653]
[1753526668153,0.10854251,118300.0,118290.0,0.52064653]
[1753526668606,0.11699509,118300.0,118290.0,0.52064653]
[1753526669464,0.12544781,118300.0,118290.0,0.52064653]
[1753526669710,0.11699509,118300.0,118290.0,0.52064653]
[1753526669935,0.10854251,118300.0,118290.0,0.52064653]
[1753526670158,0.10009,118300.0,118290.0,0.52064653]
[1753526670628,0.10009,118300.0,118290.0,0.79525901]
[1753526670840,0.10009,118300.0,118290.0,1.13525901]
[1753526671693,0.10009,118300.0,118290.0,1.16009993]
[1753526678846,0.10009,118300.0,118290.0,1.16689993]
[1753526679753,0.10009,118300.0,118290.0,0.89228745]
[1753526679960,0.10009,118300.0,118290.0,1.16689993]
[1753526680801,0.10009,118300.0,118290.0,1.17304627]
[1753526683020,0.10009,118300.0,118290.0,1.17192627]
[1753526687206,0.10854251,118300.0,118290.0,1.17192627]
[1753526687645,0.10009,118300.0,118290.0,1.17192627]
[1753526688691,0.10854251,118300.0,118290.0,1.17192627]
[1753526688883,0.10009,118300.0,118290.0,1.17192627]
[1753526690269,0.10854251,118300.0,118290.0,0.89116745]
[1753526690623,0.10009,118300.0,118290.0,1.17192627]
[1753526690977,0.10854258,118300.0,118290.0,1.17192627]
[1753526691210,0.1181053,118300.0,118290.0,1.14706627]
[1753526691390,0.10965251,118300.0,118290.0,1.14706627]
[1753526691619,0.10009,118300.0,118290.0,1.17229627]
[1753526693109,0.10854244,118300.0,118290.0,1.17229627]
[1753526693311,0.10009,118300.0,118290.0,1.17229627]
[1753526693737,0.10009,118300.0,118290.0,1.16549627]
[1753526694126,0.10854258,118300.0,118290.0,1.16549627]
[1753526694369,0.10009,118300.0,118290.0,1.16549627]
[1753526694546,0.10854251,118300.0,118290.0,1.16549627]
[1753526694774,0.10854258,118300.0,118290.0,1.16549627]
[1753526695102,0.10854251,118300.0,118290.0,1.16549627]
[1753526695307,0.11699516,118300.0,118290.0,1.16549627]
[1753526695752,0.10854251,118300.0,118290.0,1.16549627]
[1753526696552,0.11699516,118300.0,118290.0,1.16549627]
[1753526696760,0.10854251,118300.0,118290.0,1.16549627]
[1753526697133,0.11699516,118300.0,118290.0,1.16549627]
[1753526697437,0.11699509,118300.0,118290.0,1.16549627]
[1753526699310,0.22411909,118300.0,118290.0,1.16549627]
[1753526699457,0.21566651,118300.0,118290.0,1.16549627]
[1753526699861,0.22411916,118300.0,118290.0,1.16549627]
[1753526700262,0.21566651,118300.0,118290.0,1.16549627]
[1753526700827,0.207214,118300.0,118290.0,1.16549627]
[1753526701070,0.21566644,118300.0,118290.0,1.16549627]
[1753526701885,0.207214,118300.0,118290.0,1.16549627]
[1753526702087,0.21566651,118300.0,118290.0,1.16549627]
[1753526702296,0.207214,118300.0,118290.0,1.16549627]
[1753526702524,0.207214,118300.0,118290.0,1.14065535]
[1753526702730,0.21566644,118300.0,118290.0,1.14065535]
[1753526703157,0.22411895,118300.0,118290.0,1.14065535]
[1753526703366,0.207214,118300.0,118290.0,1.14065535]
[1753526704340,0.207214,118300.0,118290.0,0.72517653]
[1753526704666,0.207214,118300.0,118290.0,1.13949535]
[1753526705564,0.207214,118300.0,118290.0,0.85873653]
[1753526705776,0.207214,118300.0,118290.0,1.13949535]
[1753526706230,0.207214,118300.0,118290.0,1.0314758]
[1753526706468,0.207214,118300.0,118290.0,1.1629158]
[1753526706650,0.207214,118300.0,118290.0,1.1628758]
[1753526706889,0.207214,118300.0,118290.0,1.1658758]
[1753526707285,0.207214,118300.0,118290.0,1.1648758]
[1753526707507,0.207214,118300.0,118290.0,1.4322758]
[1753526707725,0.207214,118300.0,118290.0,1.4342758]
[1753526709573,0.204814,118300.0,118290.0,1.4342758]
[1753526717697,0.204814,118300.0,118290.0,1.15351698]
[1753526717929,0.204814,118300.0,118290.0,1.4342758]
[1753526721677,0.204814,118300.0,118290.0,1.4292758]
[1753526722325,0.204814,118300.0,118290.0,1.01511698]
[1753526722515,0.204814,118300.0,118290.0,1.14592698]
[1753526722516,0.205924,118300.0,118290.0,1.14592698]
[1753526722664,0.205924,118300.0,118290.0,1.4266858]
[1753526722870,0.205924,118300.0,118290.0,1.4287058]
[1753526723119,0.204814,118300.0,118290.0,1.4287058]
[1753526729772,0.204814,118300.0,118290.0,1.4343058]
[1753526730785,0.204814,118300.0,118290.0,1.4342258]
[1753526732756,0.204814,118300.0,118290.0,1.14827698]
[1753526732962,0.205924,118300.0,118290.0,0.80827698]
[1753526733203,0.205924,118300.0,118290.0,1.04658869]
[1753526733427,0.23973504,118300.0,118290.0,0.87216912]
[1753526733636,0.4003443,118300.0,118290.0,0.82465898]
[1753526733847,0.2312826,118300.0,118290.0,0.99369497]
[1753526734089,0.4003443,118300.0,118290.0,1.00214855]
[1753526734291,0.4003443,118300.0,118290.0,0.85197497]
[1753526734489,0.4003443,118300.0,118290.0,0.99365497]
[1753526734689,0.4003443,118300.0,118290.0,0.86888206]
[1753526735368,0.23128246,118300.0,118290.0,1.24650535]
[1753526735598,0.23973547,118300.0,118290.0,0.96574653]
[1753526735847,0.23973547,118300.0,118290.0,1.21478132]
[1753526736059,0.23862547,118300.0,118290.0,1.07485905]
[1753526736279,0.23017246,118300.0,118290.0,0.80255388]
[1753526736489,0.23017246,118300.0,118290.0,1.0833127]
[1753526736728,0.39923416,118300.0,118290.0,1.07485905]
[1753526737154,0.40768724,118300.0,118290.0,0.93329905]
[1753526737359,0.40768724,118300.0,118290.0,1.07485905]
[1753526737567,0.40768724,118300.0,118290.0,0.65254023]
[1753526737791,0.40768724,118300.0,118290.0,1.26064213]
[1753526737959,0.23128246,118300.0,118290.0,1.26064213]
[1753526738177,0.23973547,118300.0,118290.0,1.1277355]
[1753526738349,0.24818855,118300.0,118290.0,1.26060213]
[1753526738689,0.24707855,118300.0,118290.0,1.2690555]
[1753526738851,0.22171952,118300.0,118290.0,1.27750879]
[1753526739060,0.204814,118300.0,118290.0,1.27734879]
[1753526739996,0.204814,118300.0,118290.0,1.13618879]
[1753526740362,0.204814,118300.0,118290.0,1.27718879]
[1753526742938,0.205924,118300.0,118290.0,1.27698879]
[1753526743117,0.204814,118300.0,118290.0,1.27698879]
[1753526743315,0.204814,118300.0,118290.0,0.93318879]
[1753526743492,0.204814,118300.0,118290.0,1.27686879]
[1753526744765,0.204814,118300.0,118290.0,1.13618879]
[1753526744970,0.204814,118300.0,118290.0,1.27670879]
[1753526745373,0.204814,118300.0,118290.0,0.93318879]
[1753526745578,0.204814,118300.0,118290.0,1.27670879]
[1753526747593,0.204814,118300.0,118290.0,1.27642879]
[1753526748259,0.205924,118300.0,118290.0,1.27642879]
[1753526748476,0.205924,118300.0,118290.0,1.22902879]
[1753526748897,0.205924,118300.0,118290.0,1.20446879]
[1753526749291,0.205924,118300.0,118290.0,0.86122879]
[1753526749528,0.205924,118300.0,118290.0,1.20434879]
[1753526749737,0.21437651,118300.0,118290.0,1.22708879]
[1753526749848,0.21437644,118300.0,118290.0,1.22708879]
[1753526750703,0.23128167,118300.0,118290.0,0.94632997]
[1753526750911,0.28968747,118300.0,118290.0,0.53766057]
[1753526751162,0.26083503,118300.0,118290.0,0.88907422]
[1753526751370,0.26928811,118300.0,118290.0,0.91181429]
[1753526751756,0.2608356,118300.0,118290.0,0.92926338]
[1753526752152,0.4291973,118300.0,118290.0,0.10172651]
[1753526752358,0.4291973,118300.0,118290.0,0.41917615]
[1753526752359,0.44253458,118300.0,118290.0,0.41917615]
[1753526752563,0.44253458,118300.0,118290.0,0.41913615]
[1753526753173,0.7063876,118300.0,118290.0,0.22407749]
[1753526753574,0.42562878,118300.0,118290.0,0.22507749]
[1753526754376,0.82562878,118300.0,118290.0,0.22507749]
[1753526754609,0.69793452,118300.0,118290.0,0.08527749]
[1753526754802,0.69793452,118300.0,118290.0,0.22503749]
[1753526755500,0.69793452,118300.0,118290.0,0.08527749]
[1753526755701,0.69793452,118300.0,118290.0,0.22483749]
[1753526757728,0.71986547,118300.0,118290.0,0.22483749]
[1753526759472,0.71986547,118300.0,118290.0,0.08527749]
[1753526759681,0.71986547,118300.0,118290.0,0.22459749]
[1753526761140,0.246314,118300.0,118290.0,0.71975953]
[1753526761346,0.23017231,118300.0,118290.0,0.74566199]
[1753526761557,0.23862518,118300.0,118290.0,0.45644973]
[1753526761794,0.23862518,118300.0,118290.0,0.47335654]
[1753526762213,0.23862518,118300.0,118290.0,0.46490317]
[1753526763426,0.40034437,118300.0,118290.0,0.42802987]
[1753526763630,0.39189165,118300.0,118290.0,0.45115987]
[1753526763875,0.22282952,118300.0,118290.0,0.45075987]
[1753526764169,0.205924,118300.0,118290.0,0.47090682]
[1753526764414,0.204814,118300.0,118290.0,0.78196893]
[1753526764651,0.204814,118300.0,118290.0,0.80166893]
[1753526764888,0.204814,118300.0,118290.0,0.52091011]
[1753526765319,0.21326644,118300.0,118290.0,0.50121011]
[1753526765449,0.204814,118300.0,118290.0,0.50121011]
[1753526765723,0.204814,118300.0,118290.0,0.48141011]
[1753526766097,0.204814,118300.0,118290.0,0.34249011]
[1753526766316,0.21326651,118300.0,118290.0,0.48153011]
[1753526766737,0.204814,118300.0,118290.0,0.48153011]
[1753526767167,0.21326644,118300.0,118290.0,0.48153011]
[1753526767392,0.204814,118300.0,118290.0,0.48153011]
[1753526768046,0.604814,118300.0,118290.0,0.48153011]
[1753526768291,0.204814,118300.0,118290.0,0.48153011]
[1753526769182,0.21326651,118300.0,118290.0,0.48153011]
[1753526770003,0.21326644,118300.0,118290.0,0.48153011]
[1753526771683,0.21326644,118300.0,118290.0,0.50153011]
[1753526771947,0.21326644,118300.0,118290.0,0.34249011]
[1753526772141,0.22171902,118300.0,118290.0,0.48105011]
[1753526772591,0.21326644,118300.0,118290.0,0.50105011]
[1753526773173,0.21326644,118300.0,118290.0,0.48105011]
[1753526773440,0.22171902,118300.0,118290.0,0.34249011]
[1753526773633,0.22171902,118300.0,118290.0,0.48089011]
[1753526774225,0.22171895,118300.0,118290.0,0.48089011]
[1753526774463,0.2301716,118300.0,118290.0,0.48089011]
[1753526774681,0.2301716,118300.0,118290.0,0.48077011]
[1753526775380,0.2312816,118300.0,118290.0,0.48065011]
[1753526777299,0.23973447,118300.0,118290.0,0.3002225]
[1753526777505,0.24818755,118300.0,118290.0,0.44154622]
[1753526777707,0.24818755,118300.0,118290.0,0.45845331]
[1753526778055,0.23973447,118300.0,118290.0,0.45845331]
[1753526778285,0.24818748,118300.0,118290.0,0.47014675]
[1753526778544,0.24818755,118300.0,118290.0,0.44377675]
[1753526778786,0.29048755,118300.0,118290.0,0.44377675]
[1753526779029,0.72340312,118300.0,118290.0,0.41813629]
[1753526779258,0.71564047,118300.0,118290.0,0.22311749]
[1753526780589,0.43488165,118300.0,118290.0,0.22311749]
[1753526781567,1.11564047,118300.0,118290.0,0.22311749]
[1753526782798,0.83419165,118300.0,118290.0,0.22311749]
[1753526783074,0.83419165,118300.0,118290.0,0.08527749]
[1753526783331,0.83419165,118300.0,118290.0,0.24608749]
[1753526784243,0.83419165,118300.0,118290.0,0.22295749]
[1753526784642,0.83419165,118300.0,118290.0,0.22287749]
[1753526785612,0.83419165,118300.0,118290.0,0.24600749]
[1753526786451,0.83419165,118300.0,118290.0,0.22287749]
[1753526786656,1.11495047,118300.0,118290.0,0.22287749]
[1753526788324,1.11495047,118300.0,118290.0,0.24540749]
[1753526789165,1.11495047,118300.0,118290.0,0.22287749]
[1753526790147,1.11495047,118300.0,118290.0,0.24540749]
[1753526791341,1.09395047,118300.0,118290.0,0.24540749]
[1753526791550,1.11525047,118300.0,118290.0,0.24540749]
[1753526793913,1.09395047,118300.0,118290.0,0.24540749]
[1753526794465,1.11395047,118300.0,118290.0,0.24540749]
[1753526794874,1.09395047,118300.0,118290.0,0.24540749]
[1753526796134,1.07265047,118300.0,118290.0,0.24836749]
[1753526796607,1.07265047,118300.0,118290.0,0.24540749]
[1753526796816,0.79189165,118300.0,118290.0,0.24540749]
[1753526797237,0.79189165,118300.0,118290.0,0.24836749]
[1753526798920,1.10791064,118300.0,118290.0,0.24836749]
[1753526801091,1.10791064,118300.0,118290.0,0.25034749]
[1753526801389,1.10791064,118300.0,118290.0,0.24836749]
[1753526804905,1.10791064,118300.0,118290.0,0.25034749]
[1753526806714,1.10791064,118300.0,118290.0,0.24540749]
[1753526806920,1.10791064,118300.0,118290.0,0.22540749]
[1753526807127,1.10791064,118300.0,118290.0,0.22836749]
[1753526807744,1.10791064,118300.0,118290.0,0.23034749]
[1753526810098,0.79189165,118300.0,118290.0,0.23034749]
[1753526810304,1.10791064,118300.0,118290.0,0.23034749]
[1753526815712,1.10791064,118300.0,118290.0,0.25074749]
[1753526816457,1.10791064,118300.0,118290.0,0.23034749]
[1753526817915,1.10791064,118300.0,118290.0,0.25034749]
[1753526818128,1.10791064,118300.0,118290.0,0.22540749]
[1753526818715,1.10791064,118300.0,118290.0,0.22863749]
[1753526822711,0.79189165,118300.0,118290.0,0.25074749]
[1753526822917,1.10791064,118300.0,118290.0,0.25074749]
[1753526824168,1.10791064,118300.0,118290.0,0.24863749]
[1753526824628,1.10791064,118300.0,118290.0,0.25074749]
[1753526824815,0.79189165,118300.0,118290.0,0.25074749]
[1753526825028,1.10791064,118300.0,118290.0,0.25074749]
[1753526826389,1.10791064,118300.0,118290.0,0.20287749]
[1753526826732,1.44791064,118300.0,118290.0,0.06527749]
[1753526826924,6.49603513,118300.0,118290.0,0.001]
[1753526827136,5.46268781,118280.0,118270.0,0.13568]
[1753526827318,5.46268781,118280.0,118240.0,0.22298]
[1753526827319,0.1775897,118250.0,118240.0,0.27173]
[1753526827516,0.49471869,118250.0,118240.0,0.4719473]
[1753526827717,0.49471869,118250.0,118240.0,0.47243266]
[1753526827930,0.49471869,118250.0,118240.0,0.45183266]
[1753526828149,0.1786997,118250.0,118240.0,0.44860266]
[1753526828346,0.49471869,118250.0,118240.0,0.44860266]
[1753526828751,0.47964683,118250.0,118240.0,0.44860266]
[1753526828949,0.47964683,118250.0,118240.0,0.24544266]
[1753526829351,0.51148616,118250.0,118240.0,0.24544266]
[1753526830120,5.79056516,118250.0,118240.0,0.13604536]
[1753526830769,5.95325233,118250.0,118240.0,0.00048536]
[1753526831169,5.92704516,118250.0,118240.0,0.00048536]
[1753526831432,6.31184216,118250.0,118240.0,0.00048536]
[1753526831619,6.31084216,118250.0,118240.0,0.00048536]
[1753526831789,6.31384216,118250.0,118240.0,0.00048536]
[1753526832026,6.26384216,118250.0,118240.0,0.00048536]
[1753526832386,6.29407586,118250.0,118240.0,0.00048536]
[1753526832611,6.29307586,118250.0,118240.0,0.00048536]
[1753526833035,6.29507586,118250.0,118240.0,0.00048536]
[1753526833247,6.29507586,118250.0,118240.0,0.00032021]
[1753526834983,6.26786869,118250.0,118240.0,0.00032021]
[1753526835651,6.28361561,118250.0,118240.0,0.00032021]
[1753526836037,6.23361561,118250.0,118240.0,0.00032021]
[1753526837345,5.95215478,118250.0,118240.0,0.00032021]
[1753526837828,6.23333561,118250.0,118240.0,0.00032021]
[1753526838036,5.95214273,118250.0,118240.0,0.00032021]
[1753526838403,5.81694273,118250.0,118240.0,0.00032021]
[1753526838604,5.95202273,118250.0,118240.0,0.00032021]
[1753526839413,5.97190478,118250.0,118240.0,0.00032021]
[1753526840631,5.69072395,118250.0,118240.0,0.00032021]
[1753526840836,5.97190478,118250.0,118240.0,0.00032021]
[1753526842860,6.06088478,118250.0,118240.0,0.00032021]
[1753526843064,5.97190478,118250.0,118240.0,0.00032021]
[1753526845287,6.05638208,118250.0,118240.0,0.00032021]
[1753526845856,6.05569208,118250.0,118240.0,0.00032021]
[1753526846499,6.03995721,118250.0,118240.0,0.00032021]
[1753526846834,6.05568642,118250.0,118240.0,0.00032021]
[1753526847511,6.33686725,118250.0,118240.0,0.00032021]
[1753526847734,6.33686725,118250.0,118240.0,0.00023516]
[1753526848415,6.05568642,118250.0,118240.0,0.00023516]
[1753526852854,1.15979742,118250.0,118240.0,0.00023516]
[1753526853080,6.05568642,118250.0,118240.0,0.00023516]
[1753526853733,6.05568642,118250.0,118240.0,0.02444516]
[1753526854423,6.06357887,118250.0,118240.0,0.02444516]
[1753526854879,1.16768987,118250.0,118240.0,0.02444516]
[1753526855129,6.06357887,118250.0,118240.0,0.00023516]
[1753526856747,6.35138508,118250.0,118240.0,0.00023516]
[1753526857035,6.37859225,118250.0,118240.0,0.00023516]
[1753526857474,6.37790225,118250.0,118240.0,0.00023516]
[1753526858372,6.39615069,118250.0,118240.0,0.00023516]
[1753526859059,6.58131799,118250.0,118240.0,1e-08]
[1753526859273,5.42196647,118230.0,118220.0,0.02719]
[1753526859504,5.91304636,118230.0,118220.0,0.02719]
[1753526859936,5.93845936,118230.0,118220.0,0.02719]
[1753526861334,5.94045936,118230.0,118220.0,0.02719]
[1753526862396,5.94640729,118230.0,118220.0,0.02719]
[1753526863726,5.94840729,118230.0,118220.0,0.02421]
[1753526863935,5.94840729,118230.0,118220.0,0.02719]
[1753526864922,1.05251829,118230.0,118220.0,0.02719]
[1753526865330,5.94840729,118230.0,118220.0,0.02719]
[1753526865703,0.17763477,118220.0,118210.0,0.04358]
[1753526865915,0.50638406,118220.0,118210.0,0.0457]
[1753526866147,0.35928323,118220.0,118210.0,0.06991]
[1753526866400,0.64046406,118220.0,118210.0,0.06991]
[1753526866628,0.72494136,118220.0,118210.0,0.06991]
[1753526866843,0.75214853,118220.0,118210.0,0.06991]
[1753526867071,5.65014753,118220.0,118210.0,0.02719]
[1753526867287,5.65114753,118220.0,118210.0,0.01219]
[1753526867737,0.51764979,118210.0,118200.0,0.0199]
[1753526867971,0.51766482,118200.0,118190.0,0.0418]
[1753526868187,0.81457486,118200.0,118190.0,0.04392]
[1753526868415,0.84843411,118200.0,118190.0,0.0418]
[1753526868853,0.84843411,118200.0,118190.0,0.04392]
[1753526869072,0.1861562,118180.0,118170.0,0.0203]
[1753526869291,0.20188541,118180.0,118170.0,0.2409373]
[1753526869791,0.23372466,118180.0,118170.0,0.2610373]
[1753526870007,0.23372466,118180.0,118170.0,0.2882273]
[1753526870196,0.23372466,118180.0,118170.0,0.2882673]
[1753526870611,0.23372466,118180.0,118170.0,0.80761501]
[1753526870612,0.01572921,118180.0,118170.0,0.80761501]
[1753526870833,0.02418951,118190.0,118180.0,0.22615634]
[1753526871060,0.02538155,118190.0,118180.0,0.59393447]
[1753526871252,0.04230273,118190.0,118180.0,0.63804701]
[1753526871467,0.04230331,118190.0,118180.0,0.62958578]
[1753526871679,0.18614051,118190.0,118180.0,0.2878673]
[1753526871890,0.20186972,118190.0,118180.0,0.2878673]
[1753526873377,0.20186972,118190.0,118180.0,0.2888673]
[1753526873937,0.20186972,118190.0,118180.0,0.45810067]
[1753526874143,0.01692083,118190.0,118180.0,0.77312715]
[1753526874347,0.01692083,118190.0,118180.0,0.85760445]
[1753526874552,0.00846038,118190.0,118180.0,0.85760445]
[1753526874754,0.0084603,118190.0,118180.0,0.85760388]
[1753526874960,0.02538127,118190.0,118180.0,0.85760388]
[1753526875194,0.0253812,118190.0,118180.0,0.85760388]
[1753526875380,0.03384186,118190.0,118180.0,0.85760388]
[1753526875785,0.03384179,118190.0,118180.0,0.85760388]
[1753526875989,0.0253812,118190.0,118180.0,0.85760388]
[1753526876163,0.04230259,118190.0,118180.0,0.84914279]
[1753526876520,0.03384229,118190.0,118180.0,0.55950108]
[1753526876912,0.20306134,118190.0,118180.0,0.55103963]
[1753526877131,0.18614044,118190.0,118180.0,0.3733446]
[1753526877359,0.17767985,118190.0,118180.0,0.3733446]
[1753526877671,0.17767985,118190.0,118180.0,0.54257797]
[1753526878095,0.56921905,118190.0,118180.0,0.54257797]
[1753526878517,0.56921905,118190.0,118180.0,0.55950108]
[1753526878736,0.4,118190.0,118180.0,0.55950108]
[1753526878938,0.57768,118190.0,118180.0,0.38180626]
[1753526879180,0.5861408,118190.0,118180.0,0.3733446]
[1753526879390,0.59460139,118190.0,118180.0,0.3733446]
[1753526879977,0.5861408,118190.0,118180.0,0.3733446]
[1753526880646,0.5861408,118190.0,118180.0,0.83222046]
[1753526880857,0.17768,118190.0,118180.0,0.83222046]
[1753526881072,0.17768,118190.0,118180.0,0.84068205]
[1753526881278,0.17768,118190.0,118180.0,0.66298709]
[1753526881485,0.17768,118190.0,118180.0,0.65452543]
[1753526882049,0.17768,118190.0,118180.0,0.1547873]
[1753526883166,0.17768,118190.0,118180.0,0.15462212]